fUSD/lending_fUSD_20250716
["ID","MTS","AMOUNT","RATE_DAILY","PERIOD"]
[372522430,1752670244437,-460.0,0.00021917,2]
[372522431,1752670244447,-460.0,0.00021917,2]
[372522432,1752670244458,-649.04,0.00021917,2]
[372522433,1752670244469,-460.0,0.00021917,2]
[372522434,1752670244480,-460.0,0.00021917,2]
[372522435,1752670244491,-460.0,0.00021917,2]
[372522436,1752670244502,-624.42,0.00021917,2]
[372522437,1752670244513,-460.0,0.00021917,2]
[372522438,1752670244524,-460.0,0.00021917,2]
[372522439,1752670244535,-673.27,0.00021917,2]
[372522440,1752670244549,-460.0,0.00021917,2]
[372522441,1752670244560,-718.91,0.00021917,2]
[372522442,1752670244570,-1042.88,0.00021917,2]
[372522443,1752670244581,-497.16,0.00021917,2]
[372522444,1752670244592,-952.4,0.00021917,2]
[372522445,1752670244603,-460.0,0.00021917,2]
[372522446,1752670244614,-460.0,0.00021917,2]
[372522447,1752670244625,-465.76,0.00021917,2]
[372522448,1752670244636,-460.0,0.00021917,2]
[372522449,1752670244647,-716.42,0.00021917,2]
[372522450,1752670244657,-460.0,0.00021917,2]
[372522451,1752670244668,-967.75,0.00021917,2]
[372522452,1752670244678,-460.0,0.00021917,2]
[372522453,1752670244689,-460.0,0.00021917,2]
[372522454,1752670244700,-1020.03,0.00021917,2]
[372522455,1752670244711,-724.18,0.00021917,2]
[372522456,1752670244722,-460.0,0.00021917,2]
[372522457,1752670244733,-650.51,0.00021917,2]
[372522458,1752670244744,-985.01,0.00021917,2]
[372522459,1752670244755,-151.0,0.00021917,2]
[372522460,1752670244766,-511.5,0.00021917,2]
[372522461,1752670244777,-260.83416962,0.00021917,2]
[372522462,1752670244788,-499.09,0.00021917,2]
[372522463,1752670244798,-460.0,0.00021917,2]
[372522464,1752670244809,-460.0,0.00021917,2]
[372522465,1752670244820,-495.35,0.00021917,2]
[372522466,1752670244831,-726.61,0.00021917,2]
[372522467,1752670244841,-460.0,0.00021917,2]
[372522468,1752670244851,-460.0,0.00021917,2]
[372522469,1752670244862,-488.61,0.00021917,2]
[372522470,1752670244872,-460.0,0.00021917,2]
[372522471,1752670244883,-500.0,0.00021917,2]
[372522472,1752670244893,-460.0,0.00021917,2]
[372522473,1752670244903,-460.0,0.00021917,2]
[372522474,1752670244913,-460.0,0.00021917,2]
[372522475,1752670244922,-646.78,0.00021917,2]
[372522476,1752670244932,-460.0,0.00021917,2]
[372522477,1752670244942,-918.39,0.00021917,2]
[372522478,1752670244952,-460.0,0.00021917,2]
[372522479,1752670244963,-460.0,0.00021917,2]
[372522480,1752670244973,-2354.28,0.00021917,2]
[372522481,1752670244982,-460.0,0.00021917,2]
[372522482,1752670244993,-460.0,0.00021917,2]
[372522483,1752670245003,-460.0,0.00021917,2]
[372522484,1752670245013,-1973.46,0.00021917,2]
[372522485,1752670245023,-760.3,0.00021917,2]
[372522486,1752670245032,-559.2,0.00021917,2]
[372522487,1752670245042,-460.0,0.00021917,2]
[372522488,1752670245052,-559.97,0.00021917,2]
[372522489,1752670245062,-1106.55,0.00021917,2]
[372522490,1752670245072,-636.36,0.00021917,2]
[372522491,1752670245082,-460.0,0.00021917,2]
[372522492,1752670245093,-460.0,0.00021917,2]
[372522493,1752670245102,-460.87566142,0.00021917,2]
[372522494,1752670245112,-460.0,0.00021917,2]
[372522495,1752670245122,-500.0,0.00021917,2]
[372522496,1752670245131,-500.0,0.00021917,2]
[372522497,1752670245142,-500.0,0.00021917,2]
[372522498,1752670245151,-460.0,0.00021917,2]
[372522499,1752670245161,-460.0,0.00021917,2]
[372522500,1752670245171,-1336.34,0.00021917,2]
[372522501,1752670245180,-857.77,0.00021917,2]
[372522502,1752670245190,-500.0,0.00021917,2]
[372522503,1752670245200,-460.0,0.00021917,2]
[372522504,1752670245210,-500.0,0.00021917,2]
[372522505,1752670245220,-234.54346617,0.00021917,2]
[372522506,1752670245229,-460.0,0.00021917,2]
[372522507,1752670245239,-782.82,0.00021917,2]
[372522508,1752670245248,-460.0,0.00021917,2]
[372522509,1752670245258,-460.0,0.00021917,2]
[372522510,1752670245269,-551.89,0.00021917,2]
[372522511,1752670245278,-460.0,0.00021917,2]
[372522512,1752670245288,-460.0,0.00021917,2]
[372522513,1752670245298,-556.02,0.00021917,2]
[372522514,1752670245308,-1925.01,0.00021917,2]
[372522515,1752670245318,-460.0,0.00021917,2]
[372522516,1752670245328,-466.3,0.00021917,2]
[372522517,1752670245338,-3987.23,0.00021917,2]
[372522518,1752670245347,-713.43,0.00021917,2]
[372522519,1752670245358,-460.0,0.00021917,2]
[372522520,1752670245368,-460.0,0.00021917,2]
[372522521,1752670245377,-460.0,0.00021917,2]
[372522522,1752670245386,-1197.98,0.00021917,2]
[372522523,1752670245396,-934.41,0.00021917,2]
[372522524,1752670245406,-460.0,0.00021917,2]
[372522525,1752670245415,-610.55,0.00021917,2]
[372522526,1752670245425,-460.0,0.00021917,2]
[372522527,1752670245435,-733.63,0.00021917,2]
[372522528,1752670245445,-460.0,0.00021917,2]
[372522529,1752670245455,-595.64,0.00021917,2]
[372522530,1752670245465,-893.66,0.00021917,2]
[372522531,1752670245475,-460.0,0.00021917,2]
[372522532,1752670245486,-553.95,0.00021917,2]
[372522533,1752670245499,-460.0,0.00021917,2]
[372522534,1752670245509,-460.0,0.00021917,2]
[372522535,1752670245519,-460.0,0.00021917,2]
[372522536,1752670245529,-151.0,0.00021917,2]
[372522537,1752670245542,-460.0,0.00021917,2]
[372522538,1752670245552,-669.77,0.00021917,2]
[372522539,1752670245562,-460.0,0.00021917,2]
[372522540,1752670245572,-501.28,0.00021917,2]
[372522541,1752670245584,-577.14,0.00021917,2]
[372522542,1752670245594,-460.0,0.00021917,2]
[372522543,1752670245605,-526.78,0.00021917,2]
[372522545,1752670245615,-500.0,0.00021917,2]
[372522581,1752670246558,-893.48,0.00021917,2]
[372522582,1752670246582,-500.0,0.00021917,2]
[372522583,1752670246600,-460.0,0.00021917,2]
[372522584,1752670246623,-460.0,0.00021917,2]
[372522585,1752670246640,-460.0,0.00021917,2]
[372522586,1752670246670,-460.0,0.00021917,2]
[372522587,1752670246686,-494.00736175,0.00021917,2]
[372522588,1752670246695,-460.0,0.00021917,2]
[372522589,1752670246705,-188.97341918,0.00021917,2]
[372522590,1752670246715,-621.82,0.00021917,2]
[372522591,1752670246725,-460.0,0.00021917,2]
[372522592,1752670246734,-460.0,0.00021917,2]
[372522593,1752670246745,-460.0,0.00021917,2]
[372522594,1752670246754,-501.48,0.00021917,2]
[372522595,1752670246764,-460.0,0.00021917,2]
[372522596,1752670246773,-500.0,0.00021917,2]
[372522597,1752670246782,-460.0,0.00021917,2]
[372522598,1752670246792,-501.44,0.00021917,2]
[372522599,1752670246802,-701.34,0.00021917,2]
[372522600,1752670246811,-663.67,0.00021917,2]
[372522601,1752670246821,-481.87,0.00021917,2]
[372522602,1752670246830,-1084.51,0.00021917,2]
[372522603,1752670246840,-460.0,0.00021917,2]
[372522604,1752670246849,-743.82,0.00021917,2]
[372522605,1752670246859,-460.0,0.00021917,2]
[372522606,1752670246869,-378.35814924,0.00021917,2]
[372522607,1752670246878,-460.0,0.00021917,2]
[372522608,1752670246887,-460.0,0.00021917,2]
[372522609,1752670246897,-753.37,0.00021917,2]
[372522610,1752670246907,-819.52,0.00021917,2]
[372522611,1752670246916,-582.23648838,0.00021917,2]
[372522612,1752670246926,-460.0,0.00021917,2]
[372522613,1752670246936,-460.0,0.00021917,2]
[372522614,1752670246946,-726.55,0.00021917,2]
[372522615,1752670246956,-460.0,0.00021917,2]
[372522616,1752670246965,-460.0,0.00021917,2]
[372522617,1752670246975,-460.0,0.00021917,2]
[372522618,1752670246984,-626.39,0.00021917,2]
[372522619,1752670246994,-151.0,0.00021917,2]
[372522620,1752670247004,-477.07059589,0.00021917,2]
[372522621,1752670247013,-1002.3,0.00021917,2]
[372522622,1752670247023,-500.0,0.00021917,2]
[372522623,1752670247033,-500.0,0.00021917,2]
[372522624,1752670247042,-173.0,0.00021917,2]
[372522625,1752670247052,-712.31,0.00021917,2]
[372522626,1752670247062,-460.0,0.00021917,2]
[372522627,1752670247071,-895.48,0.00021917,2]
[372522628,1752670247081,-460.0,0.00021917,2]
[372522629,1752670247098,-460.0,0.00021917,2]
[372522630,1752670247107,-460.0,0.00021917,2]
[372522631,1752670247117,-558.31414049,0.00021917,2]
[372522632,1752670247127,-460.0,0.00021917,2]
[372522633,1752670247136,-460.0,0.00021917,2]
[372522634,1752670247146,-460.0,0.00021917,2]
[372522635,1752670247156,-460.0,0.00021917,2]
[372522636,1752670247166,-3011.86,0.00021917,2]
[372522637,1752670247176,-460.0,0.00021917,2]
[372522638,1752670247185,-460.0,0.00021917,2]
[372522639,1752670247195,-460.0,0.00021917,2]
[372522640,1752670247205,-943.52,0.00021917,2]
[372522641,1752670247215,-460.0,0.00021917,2]
[372522642,1752670247225,-522.46,0.00021917,2]
[372522643,1752670247234,-151.0,0.00021917,2]
[372522644,1752670247245,-1691.33,0.00021917,2]
[372522645,1752670247254,-460.0,0.00021917,2]
[372522646,1752670247264,-460.0,0.00021917,2]
[372522647,1752670247273,-460.0,0.00021917,2]
[372522648,1752670247283,-460.0,0.00021917,2]
[372522649,1752670247292,-748.17,0.00021917,2]
[372522650,1752670247302,-460.0,0.00021917,2]
[372522651,1752670247311,-460.0,0.00021917,2]
[372522652,1752670247321,-460.0,0.00021917,2]
[372522653,1752670247330,-460.0,0.00021917,2]
[372522654,1752670247340,-460.0,0.00021917,2]
[372522655,1752670247350,-460.0,0.00021917,2]
[372522656,1752670247360,-500.0,0.00021917,2]
[372522657,1752670247371,-500.0,0.00021917,2]
[372522658,1752670247382,-500.0,0.00021917,2]
[372522659,1752670247392,-500.0,0.00021917,2]
[372522660,1752670247402,-500.0,0.00021917,2]
[372522661,1752670247412,-265.4330037,0.00021917,2]
[372522662,1752670247421,-460.0,0.00021917,2]
[372522663,1752670247431,-661.27,0.00021917,2]
[372522664,1752670247441,-1926.7,0.00021917,2]
[372522665,1752670247451,-460.0,0.00021917,2]
[372522666,1752670247460,-460.0,0.00021917,2]
[372522667,1752670247469,-2066.84,0.00021917,2]
[372522668,1752670247479,-460.0,0.00021917,2]
[372522669,1752670247489,-460.0,0.00021917,2]
[372522670,1752670247500,-460.0,0.00021917,2]
[372522671,1752670247510,-460.0,0.00021917,2]
[372522672,1752670247521,-460.0,0.00021917,2]
[372522673,1752670247532,-460.0,0.00021917,2]
[372522674,1752670247548,-460.0,0.00021917,2]
[372522675,1752670247558,-460.0,0.00021917,2]
[372522676,1752670247567,-460.0,0.00021917,2]
[372522677,1752670247577,-460.0,0.00021917,2]
[372522678,1752670247589,-460.0,0.00021917,2]
[372522679,1752670247603,-981.58,0.00021917,2]
[372522680,1752670247613,-460.0,0.00021917,2]
[372522681,1752670247623,-465.21,0.00021917,2]
[372522682,1752670247632,-1247.07,0.00021917,2]
[372522683,1752670247642,-803.09,0.00021917,2]
[372522684,1752670247652,-460.0,0.00021917,2]
[372522685,1752670247661,-9369.97,0.00021917,2]
[372522686,1752670247672,-691.47,0.00021917,2]
[372522687,1752670247682,-465.52313508,0.00021917,2]
[372522688,1752670247692,-1858.4,0.00021917,2]
[372522689,1752670247703,-460.0,0.00021917,2]
[372522690,1752670247713,-460.0,0.00021917,2]
[372522691,1752670247723,-460.0,0.00021917,2]
[372522692,1752670247734,-1192.17,0.00021917,2]
[372522693,1752670247745,-460.0,0.00021917,2]
[372522694,1752670247755,-2452.43,0.00021917,2]
[372522695,1752670247765,-460.0,0.00021917,2]
[372522696,1752670247775,-628.49,0.00021917,2]
[372522697,1752670247784,-2738.08,0.00021917,2]
[372522698,1752670247794,-250.0,0.00021917,2]
[372522699,1752670247804,-1284.37,0.00021917,2]
[372522700,1752670247814,-1071.13,0.00021917,2]
[372522701,1752670247823,-460.0,0.00021917,2]
[372522702,1752670247833,-460.0,0.00021917,2]
[372522703,1752670247842,-460.0,0.00021917,2]
[372522704,1752670247852,-477.15,0.00021917,2]
[372522705,1752670247861,-460.0,0.00021917,2]
[372522706,1752670247871,-1321.34,0.00021917,2]
[372522707,1752670247880,-935.46,0.00021917,2]
[372522708,1752670247889,-760.95,0.00021917,2]
[372522709,1752670247900,-163.26232966,0.00021917,2]
[372522710,1752670247909,-661.6,0.00021917,2]
[372522711,1752670247918,-575.09,0.00021917,2]
[372522712,1752670247928,-460.0,0.00021917,2]
[372522713,1752670247938,-460.0,0.00021917,2]
[372522714,1752670247947,-460.0,0.00021917,2]
[372522715,1752670247957,-479.4,0.00021917,2]
[372522716,1752670247966,-749.94,0.00021917,2]
[372522717,1752670247976,-500.0,0.00021917,2]
[372522718,1752670247986,-460.0,0.00021917,2]
[372522719,1752670247998,-3690.12,0.00021917,2]
[372522720,1752670248008,-490.24,0.00021917,2]
[372522721,1752670248018,-460.0,0.00021917,2]
[372522722,1752670248027,-461.48885521,0.00021917,2]
[372522723,1752670248037,-460.0,0.00021917,2]
[372522724,1752670248046,-664.57,0.00021917,2]
[372522725,1752670248056,-460.0,0.00021917,2]
[372522726,1752670248065,-522.91,0.00021917,2]
[372522727,1752670248075,-753.89,0.00021917,2]
[372522728,1752670248084,-460.0,0.00021917,2]
[372522729,1752670248094,-563.21,0.00021917,2]
[372522730,1752670248104,-460.0,0.00021917,2]
[372522731,1752670248115,-1393.87,0.00021917,2]
[372522732,1752670248124,-460.0,0.00021917,2]
[372522733,1752670248133,-460.0,0.00021917,2]
[372522734,1752670248143,-6029.37,0.00021917,2]
[372522735,1752670248152,-151.0,0.00021917,2]
[372522736,1752670248162,-460.0,0.00021917,2]
[372522737,1752670248172,-988.46,0.00021917,2]
[372522738,1752670248181,-460.0,0.00021917,2]
[372522739,1752670248193,-460.0,0.00021917,2]
[372522740,1752670248205,-634.25,0.00021917,2]
[372522741,1752670248214,-460.0,0.00021917,2]
[372522742,1752670248224,-460.0,0.00021917,2]
[372522743,1752670248233,-460.0,0.00021917,2]
[372522744,1752670248244,-460.0,0.00021917,2]
[372522745,1752670248254,-761.45,0.00021917,2]
[372522746,1752670248264,-460.0,0.00021917,2]
[372522747,1752670248274,-1675.47,0.00021917,2]
[372522748,1752670248284,-460.0,0.00021917,2]
[372522749,1752670248294,-533.64,0.00021917,2]
[372522750,1752670248304,-460.0,0.00021917,2]
[372522751,1752670248313,-1317.77,0.00021917,2]
[372522752,1752670248322,-2326.55,0.00021917,2]
[372522753,1752670248331,-460.0,0.00021917,2]
[372522754,1752670248341,-460.0,0.00021917,2]
[372522755,1752670248351,-460.0,0.00021917,2]
[372522756,1752670248360,-460.0,0.00021917,2]
[372522757,1752670248370,-151.0,0.00021917,2]
[372522758,1752670248380,-1521.59,0.00021917,2]
[372522759,1752670248390,-460.0,0.00021917,2]
[372522760,1752670248399,-837.69,0.00021917,2]
[372522761,1752670248409,-460.0,0.00021917,2]
[372522762,1752670248419,-460.0,0.00021917,2]
[372522763,1752670248429,-151.0,0.00021917,2]
[372522764,1752670248439,-460.0,0.00021917,2]
[372522765,1752670248449,-1407.41,0.00021917,2]
[372522766,1752670248459,-602.85,0.00021917,2]
[372522767,1752670248470,-460.0,0.00021917,2]
[372522768,1752670248480,-941.26,0.00021917,2]
[372522769,1752670248491,-460.0,0.00021917,2]
[372522770,1752670248502,-151.0,0.00021917,2]
[372522771,1752670248512,-2256.36,0.00021917,2]
[372522772,1752670248522,-252.348904,0.00021917,2]
[372522773,1752670248532,-460.0,0.00021917,2]
[372522774,1752670248545,-460.0,0.00021917,2]
[372522775,1752670248555,-480.35,0.00021917,2]
[372522776,1752670248566,-2259.11,0.00021917,2]
[372522777,1752670248575,-460.0,0.00021917,2]
[372522778,1752670248586,-1059.18,0.00021917,2]
[372522779,1752670248596,-1765.51,0.00021917,2]
[372522780,1752670248606,-1847.26,0.00021917,2]
[372522781,1752670248617,-460.0,0.00021917,2]
[372522782,1752670248627,-460.0,0.00021917,2]
[372522783,1752670248636,-460.0,0.00021917,2]
[372522784,1752670248646,-9466.14,0.00021917,2]
[372522785,1752670248656,-460.0,0.00021917,2]
[372522786,1752670248665,-151.0,0.00021917,2]
[372522787,1752670248675,-460.0,0.00021917,2]
[372522788,1752670248685,-460.0,0.00021917,2]
[372522789,1752670248694,-460.0,0.00021917,2]
[372522790,1752670248704,-2536.7,0.00021917,2]
[372522791,1752670248714,-500.0,0.00021917,2]
[372522792,1752670248725,-500.0,0.00021917,2]
[372522793,1752670248735,-528.29,0.00021917,2]
[372522794,1752670248745,-500.0,0.00021917,2]
[372522795,1752670248755,-500.0,0.00021917,2]
[372522796,1752670248765,-500.0,0.00021917,2]
[372522797,1752670248775,-500.0,0.00021917,2]
[372522798,1752670248784,-1452.46,0.00021917,2]
[372522799,1752670248794,-500.0,0.00021917,2]
[372522800,1752670248804,-500.0,0.00021917,2]
[372522801,1752670248814,-460.0,0.00021917,2]
[372522802,1752670248824,-1741.19,0.00021917,2]
[372522803,1752670248834,-460.0,0.00021917,2]
[372522804,1752670248843,-1564.37,0.00021917,2]
[372522805,1752670248853,-601.67020295,0.00021917,2]
[372522806,1752670248863,-460.0,0.00021917,2]
[372522807,1752670248872,-525.53,0.00021917,2]
[372522808,1752670248883,-460.0,0.00021917,2]
[372522809,1752670248893,-1209.62,0.00021917,2]
[372522810,1752670248903,-674.49,0.00021917,2]
[372522811,1752670248913,-460.0,0.00021917,2]
[372522812,1752670248922,-2065.64,0.00021917,2]
[372522813,1752670248932,-460.0,0.00021917,2]
[372522814,1752670248942,-460.0,0.00021917,2]
[372522815,1752670248951,-1341.81,0.00021917,2]
[372522816,1752670248961,-2797.26,0.00021917,2]
[372522817,1752670248971,-460.0,0.00021917,2]
[372522818,1752670248981,-460.0,0.00021917,2]
[372522819,1752670248991,-460.0,0.00021917,2]
[372522820,1752670249002,-1074.57,0.00021917,2]
[372522821,1752670249012,-1067.8,0.00021917,2]
[372522822,1752670249121,-462.46350476,0.00021917,2]
[372522823,1752670249131,-2713.9224704,0.00021917,2]
[372522824,1752670249758,-684.03151752,0.00021917,2]
[372522825,1752670249845,-798.77601208,0.00021917,2]
[372522826,1752670249855,-460.0,0.00021917,2]
[372522827,1752670249865,-460.0,0.00021917,2]
[372522828,1752670249874,-360.59188353,0.00021917,2]
[372522829,1752670249884,-931.13,0.00021917,2]
[372522830,1752670249894,-460.0,0.00021917,2]
[372522831,1752670249903,-460.0,0.00021917,2]
[372522832,1752670249912,-511.29,0.00021917,2]
[372522833,1752670249922,-461.41048171,0.00021917,2]
[372522834,1752670249931,-460.0,0.00021917,2]
[372522835,1752670249940,-1653.46,0.00021917,2]
[372522836,1752670249950,-484.5,0.00021917,2]
[372522837,1752670249959,-460.0,0.00021917,2]
[372522838,1752670249968,-943.3,0.00021917,2]
[372522839,1752670249977,-869.11,0.00021917,2]
[372522840,1752670249986,-1119.73,0.00021917,2]
[372522841,1752670249996,-154.197404,0.00021917,2]
[372522842,1752670250006,-460.0,0.00021917,2]
[372522843,1752670250015,-571.45,0.00021917,2]
[372522844,1752670250025,-825.18,0.00021917,2]
[372522845,1752670250034,-825.18,0.00021917,2]
[372522846,1752670250044,-460.0,0.00021917,2]
[372522847,1752670250053,-811.19,0.00021917,2]
[372522848,1752670250063,-825.18,0.00021917,2]
[372522849,1752670250072,-460.0,0.00021917,2]
[372522850,1752670250081,-2127.33,0.00021917,2]
[372522851,1752670250090,-9515.96,0.00021917,2]
[372522852,1752670250099,-460.0,0.00021917,2]
[372522853,1752670250109,-177.79674599,0.00021917,2]
[372522854,1752670250124,-1288.41325401,0.00021917,2]
[372522855,1752670250133,-639.83,0.00021917,2]
[372522856,1752670250143,-460.0,0.00021917,2]
[372522857,1752670250153,-460.0,0.00021917,2]
[372522858,1752670250163,-8394.05,0.00021917,2]
[372522859,1752670250173,-500.0,0.00021917,2]
[372522860,1752670250182,-460.0,0.00021917,2]
[372522861,1752670250193,-460.0,0.00021917,2]
[372522862,1752670250202,-1849.72,0.00021917,2]
[372522863,1752670250212,-1097.61,0.00021917,2]
[372522864,1752670250221,-557.64,0.00021917,2]
[372522865,1752670250231,-460.0,0.00021917,2]
[372522866,1752670250243,-460.0,0.00021917,2]
[372522867,1752670250253,-643.09,0.00021917,2]
[372522868,1752670250262,-2673.54,0.00021917,2]
[372522869,1752670250272,-1787.99,0.00021917,2]
[372522870,1752670250281,-460.0,0.00021917,2]
[372522871,1752670250290,-460.0,0.00021917,2]
[372522872,1752670250300,-460.0,0.00021917,2]
[372522873,1752670250309,-500.99480526,0.00021917,2]
[372522874,1752670250318,-1963.6681598,0.00021917,2]
[372522875,1752670250343,-5816.53104844,0.00021917,2]
[372522876,1752670250355,-262.51464864,0.00021917,2]
[372522877,1752670250874,-1115.51,0.00021854,2]
[372522878,1752670250886,-1063.85,0.00021854,2]
[372522879,1752670250914,-316.22,0.00021854,2]
[372522880,1752670251084,-1092.09997489,0.00021854,2]
[372522881,1752670251094,-10944.05412512,0.00021917,2]
[372522882,1752670251970,-747.0378,0.00021917,2]
[372522883,1752670251982,-2300.3687984,0.00021917,2]
[372522884,1752670252079,-6714.665815,0.00021917,2]
[372522885,1752670252090,-6695.93682961,0.00021917,2]
[372522886,1752670252243,-18029.97277499,0.00021917,2]
[372522887,1752670252255,-2348.03,0.00021917,2]
[372522888,1752670252265,-156.834846,0.00021917,2]
[372522889,1752670252275,-9329.06847901,0.00021917,2]
[372522890,1752670252291,-1025.49152099,0.00021917,2]
[372522891,1752670252300,-460.0,0.00021917,2]
[372522892,1752670252310,-460.0,0.00021917,2]
[372522893,1752670252320,-1031.31,0.00021917,2]
[372522894,1752670252330,-193.69847903,0.00021917,2]
[372522895,1752670252345,-306.30152097,0.00021917,2]
[372522896,1752670252355,-2323.28,0.00021917,2]
[372522897,1752670252364,-345.26847903,0.00021917,2]
[372522898,1752670256708,-154.73152097,0.00021917,2]
[372522899,1752670256721,-500.0,0.00021917,2]
[372522900,1752670256731,-500.0,0.00021917,2]
[372522901,1752670256741,-552.95,0.00021917,2]
[372522902,1752670256751,-460.0,0.00021917,2]
[372522903,1752670256761,-500.0,0.00021917,2]
[372522904,1752670256771,-424.637825,0.00021917,2]
[372522905,1752670256781,-500.33,0.00021917,2]
[372522906,1752670256791,-500.0,0.00021917,2]
[372522907,1752670256800,-500.0,0.00021917,2]
[372522908,1752670256811,-500.0,0.00021917,2]
[372522909,1752670256820,-460.0,0.00021917,2]
[372522910,1752670256830,-1295.72,0.00021917,2]
[372522911,1752670256840,-460.0,0.00021917,2]
[372522912,1752670256851,-424.637825,0.00021917,2]
[372522913,1752670256860,-460.0,0.00021917,2]
[372522914,1752670256870,-460.0,0.00021917,2]
[372522915,1752670256880,-1438.6,0.00021917,2]
[372522916,1752670256890,-151.0,0.00021917,2]
[372522917,1752670256900,-569.48,0.00021917,2]
[372522918,1752670256910,-460.0,0.00021917,2]
[372522919,1752670256920,-1070.41,0.00021917,2]
[372522920,1752670256931,-1650.96,0.00021917,2]
[372522921,1752670256940,-460.0,0.00021917,2]
[372522922,1752670256950,-460.0,0.00021917,2]
[372522923,1752670256960,-5028.38,0.00021917,2]
[372522924,1752670256970,-460.0,0.00021917,2]
[372522925,1752670256980,-460.0,0.00021917,2]
[372522926,1752670256990,-460.0,0.00021917,2]
[372522927,1752670257000,-500.0,0.00021917,2]
[372522928,1752670257011,-500.0,0.00021917,2]
[372522929,1752670257020,-2440.7,0.00021917,2]
[372522930,1752670257030,-642.29,0.00021917,2]
[372522931,1752670257040,-1787.7,0.00021917,2]
[372522932,1752670257050,-727.41,0.00021917,2]
[372522933,1752670257060,-460.0,0.00021917,2]
[372522934,1752670257069,-460.0,0.00021917,2]
[372522935,1752670257079,-3631.16,0.00021917,2]
[372522936,1752670257089,-460.0,0.00021917,2]
[372522937,1752670257099,-462.69461154,0.00021917,2]
[372522938,1752670257110,-4359.46,0.00021917,2]
[372522939,1752670257119,-460.0,0.00021917,2]
[372522940,1752670257129,-607.69,0.00021917,2]
[372522941,1752670257139,-500.0,0.00021917,2]
[372522942,1752670257149,-460.0,0.00021917,2]
[372522943,1752670257158,-151.0,0.00021917,2]
[372522944,1752670257167,-460.0,0.00021917,2]
[372522945,1752670257176,-2289.32,0.00021917,2]
[372522946,1752670257186,-654.55,0.00021917,2]
[372522947,1752670257195,-1881.06,0.00021917,2]
[372522948,1752670257204,-460.0,0.00021917,2]
[372522949,1752670257213,-1045.83,0.00021917,2]
[372522950,1752670257222,-460.0,0.00021917,2]
[372522951,1752670257232,-460.0,0.00021917,2]
[372522952,1752670257242,-460.0,0.00021917,2]
[372522953,1752670257252,-1370.11,0.00021917,2]
[372522954,1752670257261,-460.0,0.00021917,2]
[372522955,1752670257271,-1398.48,0.00021917,2]
[372522956,1752670257281,-460.0,0.00021917,2]
[372522957,1752670257290,-2882.83,0.00021917,2]
[372522958,1752670257300,-1378.86,0.00021917,2]
[372522959,1752670257310,-460.0,0.00021917,2]
[372522960,1752670257320,-460.0,0.00021917,2]
[372522961,1752670257330,-746.74,0.00021917,2]
[372522962,1752670257340,-460.0,0.00021917,2]
[372522963,1752670257350,-460.0,0.00021917,2]
[372522964,1752670257360,-2844.71,0.00021917,2]
[372522965,1752670257370,-1014.88,0.00021917,2]